fUSD/lending_fUSD_20250123
["ID","MTS","AMOUNT","RATE_DAILY","PERIOD"]
[350078681,1737601845338,-500.0,0.00019178,2]
[350078682,1737601845347,-729.76,0.00019178,2]
[350078683,1737601845357,-506.33976089,0.00019178,2]
[350078684,1737601845366,-500.0,0.00019178,2]
[350078685,1737601845375,-629.29,0.00019178,2]
[350078686,1737601845384,-500.0,0.00019178,2]
[350078687,1737601845585,-500.0,0.00019178,2]
[350078688,1737601845595,-502.62524806,0.00019178,2]
[350078689,1737601845605,-1076.24,0.00019178,2]
[350078690,1737601845615,-500.0,0.00019178,2]
[350078691,1737601845624,-836.11,0.00019178,2]
[350078692,1737601845633,-500.0,0.00019178,2]
[350078693,1737601845642,-1478.72,0.00019178,2]
[350078694,1737601845655,-500.0,0.00019178,2]
[350078695,1737601845664,-500.0,0.00019178,2]
[350078696,1737601845673,-500.0,0.00019178,2]
[350078697,1737601845682,-500.0,0.00019178,2]
[350078698,1737601845691,-500.0,0.00019178,2]
[350078699,1737601845701,-500.0,0.00019178,2]
[350078700,1737601845710,-500.0,0.00019178,2]
[350078701,1737601845719,-590.35,0.00019178,2]
[350078702,1737601845728,-1223.08,0.00019178,2]
[350078703,1737601845738,-496.44420831,0.00019178,2]
[350078704,1737601845747,-500.0,0.00019178,2]
[350078705,1737601845756,-500.0,0.00019178,2]
[350078706,1737601845765,-2287.67,0.00019178,2]
[350078707,1737601845775,-500.0,0.00019178,2]
[350078708,1737601845784,-500.0,0.00019178,2]
[350078709,1737601845793,-968.27,0.00019178,2]
[350078710,1737601845803,-500.0,0.00019178,2]
[350078711,1737601845812,-500.0,0.00019178,2]
[350078712,1737601845822,-500.0,0.00019178,2]
[350078713,1737601845831,-500.0,0.00019178,2]
[350078714,1737601845841,-500.0,0.00019178,2]
[350078715,1737601845850,-500.0,0.00019178,2]
[350078716,1737601845859,-500.0,0.00019178,2]
[350078717,1737601845868,-500.0,0.00019178,2]
[350078718,1737601845877,-500.0,0.00019178,2]
[350078719,1737601845887,-504.52888451,0.00019178,2]
[350078720,1737601845898,-1330.84,0.00019178,2]
[350078721,1737601845910,-500.0,0.00019178,2]
[350078722,1737601845924,-1440.82,0.00019178,2]
[350078723,1737601845933,-512.18678296,0.00019178,2]
[350078724,1737601845942,-500.0,0.00019178,2]
[350078725,1737601845952,-507.99304485,0.00019178,2]
[350078726,1737601845961,-1365.42,0.00019178,2]
[350078727,1737601845971,-515.21993304,0.00019178,2]
[350078728,1737601845980,-2497.89,0.00019178,2]
[350078729,1737601845989,-500.0,0.00019178,2]
[350078730,1737601845999,-881.86,0.00019178,2]
[350078731,1737601846008,-1452.48,0.00019178,2]
[350078732,1737601846017,-500.0,0.00019178,2]
[350078733,1737601846027,-500.0,0.00019178,2]
[350078734,1737601846037,-1659.58,0.00019178,2]
[350078735,1737601846046,-447.4115106,0.00019178,2]
[350078736,1737601846055,-901.96,0.00019178,2]
[350078737,1737601846065,-500.0,0.00019178,2]
[350078738,1737601846074,-774.03,0.00019178,2]
[350078739,1737601846084,-500.0,0.00019178,2]
[350078740,1737601846093,-620.7,0.00019178,2]
[350078741,1737601846102,-505.717373,0.00019178,2]
[350078742,1737601846111,-1136.0,0.00019178,2]
[350078743,1737601846120,-500.0,0.00019178,2]
[350078744,1737601846130,-1336.5,0.00019178,2]
[350078745,1737601846139,-500.0,0.00019178,2]
[350078746,1737601846148,-500.0,0.00019178,2]
[350078747,1737601846157,-800.69,0.00019178,2]
[350078748,1737601846166,-500.0,0.00019178,2]
[350078749,1737601846175,-500.0,0.00019178,2]
[350078750,1737601846184,-762.67,0.00019178,2]
[350078751,1737601846193,-2708.15,0.00019178,2]
[350078752,1737601846203,-600.78,0.00019178,2]
[350078753,1737601846212,-500.0,0.00019178,2]
[350078754,1737601846221,-473.74848666,0.00019178,2]
[350078755,1737601846231,-500.0,0.00019178,2]
[350078756,1737601846240,-500.0,0.00019178,2]
[350078757,1737601846249,-282.27523107,0.00019178,2]
[350078758,1737601846258,-500.0,0.00019178,2]
[350078759,1737601846268,-500.0,0.00019178,2]
[350078760,1737601846282,-500.0,0.00019178,2]
[350078761,1737601846291,-500.0,0.00019178,2]
[350078762,1737601846300,-645.45,0.00019178,2]
[350078763,1737601846310,-500.0,0.00019178,2]
[350078765,1737601846319,-500.0,0.00019178,2]
[350078767,1737601846329,-500.0,0.00019178,2]
[350078769,1737601846338,-975.87,0.00019178,2]
[350078771,1737601846348,-500.0,0.00019178,2]
[350078773,1737601846358,-500.0,0.00019178,2]
[350078775,1737601846368,-1785.01,0.00019178,2]
[350078778,1737601846378,-500.0,0.00019178,2]
[350078779,1737601846388,-500.0,0.00019178,2]
[350078782,1737601846402,-500.0,0.00019178,2]
[350078784,1737601846412,-2094.7,0.00019178,2]
[350078787,1737601846422,-973.45,0.00019178,2]
[350078790,1737601846431,-500.0,0.00019178,2]
[350078792,1737601846441,-500.0,0.00019178,2]
[350078794,1737601846450,-1583.2,0.00019178,2]
[350078796,1737601846461,-1014.5,0.00019178,2]
[350078798,1737601846471,-500.0,0.00019178,2]
[350078800,1737601846480,-500.0,0.00019178,2]
[350078802,1737601846490,-505.62533142,0.00019178,2]
[350078804,1737601846500,-740.05,0.00019178,2]
[350078806,1737601846509,-500.0,0.00019178,2]
[350078808,1737601846518,-500.0,0.00019178,2]
[350078810,1737601846528,-512.65491056,0.00019178,2]
[350078812,1737601846537,-500.0,0.00019178,2]
[350078814,1737601846546,-1008.54,0.00019178,2]
[350078816,1737601846555,-500.0,0.00019178,2]
[350078818,1737601846564,-500.0,0.00019178,2]
[350078820,1737601846573,-500.0,0.00019178,2]
[350078821,1737601846586,-683.54,0.00019178,2]
[350078824,1737601846596,-500.0,0.00019178,2]
[350078826,1737601846606,-501.21750696,0.00019178,2]
[350078828,1737601846615,-1456.71,0.00019178,2]
[350078829,1737601846625,-500.0,0.00019178,2]
[350078831,1737601846634,-500.0,0.00019178,2]
[350078833,1737601846643,-500.0,0.00019178,2]
[350078835,1737601846655,-1653.44,0.00019178,2]
[350078837,1737601846665,-500.0,0.00019178,2]
[350078840,1737601846676,-503.6489101,0.00019178,2]
[350078841,1737601846685,-947.44,0.00019178,2]
[350078844,1737601846695,-659.61,0.00019178,2]
[350078846,1737601846704,-500.0,0.00019178,2]
[350078848,1737601846714,-500.0,0.00019178,2]
[350078850,1737601846723,-500.0,0.00019178,2]
[350078852,1737601846732,-501.74432625,0.00019178,2]
[350078854,1737601846741,-859.87,0.00019178,2]
[350078856,1737601846751,-502.52625781,0.00019178,2]
[350078858,1737601846760,-500.0,0.00019178,2]
[350078860,1737601846769,-500.0,0.00019178,2]
[350078861,1737601846779,-500.0,0.00019178,2]
[350078863,1737601846788,-500.0,0.00019178,2]
[350078865,1737601846798,-267.4126664,0.00019178,2]
[350078867,1737601846807,-500.0,0.00019178,2]
[350078869,1737601846816,-713.74,0.00019178,2]
[350078871,1737601846825,-505.85273738,0.00019178,2]
[350078873,1737601846834,-500.0,0.00019178,2]
[350078875,1737601846843,-880.08,0.00019178,2]
[350078877,1737601846853,-500.0,0.00019178,2]
[350078879,1737601846862,-500.0,0.00019178,2]
[350078882,1737601846871,-865.21,0.00019178,2]
[350078883,1737601846881,-502.5240119,0.00019178,2]
[350078885,1737601846890,-516.56017609,0.00019178,2]
[350078887,1737601846899,-500.0,0.00019178,2]
[350078889,1737601846908,-499.6720841,0.00019178,2]
[350078891,1737601846917,-500.0,0.00019178,2]
[350078893,1737601846927,-500.0,0.00019178,2]
[350078895,1737601846936,-500.0,0.00019178,2]
[350078897,1737601846945,-525.51,0.00019178,2]
[350078898,1737601846955,-2205.73,0.00019178,2]
[350078899,1737601846964,-500.0,0.00019178,2]
[350078900,1737601846973,-500.0,0.00019178,2]
[350078901,1737601846983,-500.0,0.00019178,2]
[350078902,1737601846992,-500.0,0.00019178,2]
[350078903,1737601847001,-500.0,0.00019178,2]
[350078904,1737601847011,-500.0,0.00019178,2]
[350078905,1737601847020,-164.12083521,0.00019178,2]
[350078906,1737601847029,-520.85,0.00019178,2]
[350078907,1737601847038,-500.0,0.00019178,2]
[350078908,1737601847048,-500.0,0.00019178,2]
[350078909,1737601847057,-500.0,0.00019178,2]
[350078910,1737601847067,-503.13085065,0.00019178,2]
[350078911,1737601847077,-1015.49,0.00019178,2]
[350078912,1737601847087,-1435.42,0.00019178,2]
[350078913,1737601847097,-561.04270112,0.00019178,2]
[350078914,1737601847106,-500.0,0.00019178,2]
[350078915,1737601847116,-500.0,0.00019178,2]
[350078916,1737601847126,-500.0,0.00019178,2]
[350078917,1737601847135,-500.0,0.00019178,2]
[350078918,1737601847147,-502.38418617,0.00019178,2]
[350078919,1737601847156,-500.0,0.00019178,2]
[350078920,1737601847165,-500.0,0.00019178,2]
[350078921,1737601847174,-330.04521222,0.00019178,2]
[350078922,1737601847184,-500.0,0.00019178,2]
[350078923,1737601847193,-500.0,0.00019178,2]
[350078924,1737601847202,-500.0,0.00019178,2]
[350078925,1737601847212,-671.32,0.00019178,2]
[350078926,1737601847221,-599.42,0.00019178,2]
[350078927,1737601847230,-843.22,0.00019178,2]
[350078928,1737601847239,-501.62462531,0.00019178,2]
[350078929,1737601847248,-500.0,0.00019178,2]
[350078930,1737601847258,-500.0,0.00019178,2]
[350078931,1737601847267,-2063.25,0.00019178,2]
[350078932,1737601847276,-500.0,0.00019178,2]
[350078933,1737601847285,-518.56617507,0.00019178,2]
[350078934,1737601847294,-1782.0,0.000192,2]
[350078935,1737601847303,-358.61744785,0.0001921,2]
[350078936,1737601847312,-177.43,0.00019227,2]
[350078937,1737601847322,-160.83,0.00019248,2]
[350078938,1737601847332,-854.17,0.00019273,2]
[350078939,1737601847341,-358.61744785,0.00019314,2]
[350078940,1737601847350,-854.17,0.0001941,2]
[350078941,1737601847359,-358.61744785,0.00019417,2]
[350078942,1737601847368,-491.63,0.00019428,2]
[350078943,1737601847377,-500.0,0.00019452,14]
[350078944,1737601847387,-500.0,0.00019452,2]
[350078945,1737601847397,-500.0,0.00019452,2]
[350078946,1737601847406,-500.0,0.00019452,2]
[350078947,1737601847415,-500.0,0.00019452,2]
[350078948,1737601847424,-581.95969808,0.00019452,2]
[350078949,1737601847433,-558.33173748,0.00019452,2]
[350078950,1737601847442,-514.24628328,0.00019452,2]
[350078951,1737601847452,-500.0,0.00019452,2]
[350078952,1737601847462,-500.0,0.00019452,2]
[350078953,1737601847471,-500.0,0.00019452,2]
[350078954,1737601847480,-500.0,0.00019452,2]
[350078955,1737601847489,-500.0,0.00019452,2]
[350078956,1737601847498,-500.0,0.00019452,2]
[350078957,1737601847507,-275.89815298,0.00019452,2]
[350078958,1737601847516,-500.0,0.00019452,2]
[350078959,1737601847525,-500.0,0.00019452,2]
[350078960,1737601847535,-500.0,0.00019452,2]
[350078961,1737601847544,-500.0,0.00019452,2]
[350078962,1737601847554,-500.0,0.00019452,2]
[350078963,1737601847563,-500.0,0.00019452,2]
[350078964,1737601847572,-500.0,0.00019452,2]
[350078965,1737601847585,-570.23,0.00019452,2]
[350078966,1737601847595,-500.0,0.00019452,2]
[350078967,1737601847604,-500.0,0.00019452,2]
[350078968,1737601847614,-500.0,0.00019452,2]
[350078969,1737601847625,-500.0,0.00019452,2]
[350078970,1737601847634,-500.0,0.00019452,2]
[350078971,1737601847644,-500.0,0.00019452,2]
[350078972,1737601847655,-500.0,0.00019452,2]
[350078973,1737601847664,-500.0,0.00019452,2]
[350078974,1737601847673,-500.0,0.00019452,2]
[350078975,1737601847683,-500.0,0.00019452,2]
[350078976,1737601847692,-500.0,0.00019452,2]
[350078977,1737601847701,-568.18,0.00019452,2]
[350078978,1737601847711,-500.0,0.00019452,2]
[350078979,1737601847720,-524.27162252,0.00019452,2]
[350078980,1737601847729,-500.0,0.00019452,2]
[350078981,1737601847738,-780.76,0.00019452,2]
[350078982,1737601847748,-500.0,0.00019452,2]
[350078983,1737601847757,-500.0,0.00019452,2]
[350078984,1737601847766,-500.0,0.00019452,2]
[350078985,1737601847775,-500.0,0.00019452,2]
[350078986,1737601847784,-536.36,0.00019452,2]
[350078987,1737601847793,-500.0,0.00019452,2]
[350078988,1737601847802,-500.0,0.00019452,2]
[350078989,1737601847811,-500.0,0.00019452,2]
[350078990,1737601847820,-500.0,0.00019452,2]
[350078991,1737601847829,-500.0,0.00019452,2]
[350078992,1737601847842,-500.0,0.00019452,2]
[350078993,1737601847851,-500.0,0.00019452,2]
[350078994,1737601847860,-500.0,0.00019452,2]
[350078995,1737601847870,-500.0,0.00019452,2]
[350078996,1737601847879,-519.52659,0.00019452,2]
[350078997,1737601847890,-500.0,0.00019452,2]
[350078998,1737601847899,-500.0,0.00019452,2]
[350078999,1737601847908,-344.13758988,0.00019452,2]
[350079000,1737601847917,-500.0,0.00019452,2]
[350079001,1737601847927,-500.0,0.00019452,2]
[350079002,1737601847936,-367.11,0.00019452,2]
[350079003,1737601847945,-520.63,0.00019452,2]
[350079004,1737601847955,-500.0,0.00019452,2]
[350079005,1737601847964,-558.32,0.00019452,2]
[350079006,1737601847973,-500.0,0.00019452,2]
[350079007,1737601847982,-467.734024,0.00019452,2]
[350079008,1737601847991,-633.07,0.00019452,2]
[350079009,1737601848000,-500.0,0.00019452,2]
[350079010,1737601848010,-548.18,0.00019452,2]
[350079011,1737601848019,-157.57288745,0.00019452,2]
[350079012,1737601848029,-534.32,0.00019452,2]
[350079013,1737601848039,-502.31,0.00019452,2]
[350079014,1737601848048,-500.0,0.00019452,2]
[350079015,1737601848058,-500.0,0.00019452,2]
[350079016,1737601848067,-519.59,0.00019452,2]
[350079017,1737601848077,-500.0,0.00019452,2]
[350079018,1737601848087,-500.0,0.00019452,2]
[350079019,1737601848096,-500.0,0.00019452,2]
[350079020,1737601848105,-500.0,0.00019452,2]
[350079021,1737601848114,-500.0,0.00019452,2]
[350079022,1737601848125,-500.0,0.00019452,2]
[350079023,1737601848134,-500.0,0.00019452,2]
[350079024,1737601848145,-500.0,0.00019452,2]
[350079025,1737601848154,-500.0,0.00019452,2]
[350079026,1737601848164,-500.0,0.00019452,2]
[350079027,1737601848174,-500.0,0.00019452,2]
[350079028,1737601848183,-500.0,0.00019452,2]
[350079029,1737601848193,-500.0,0.00019452,2]
[350079030,1737601848203,-500.0,0.00019452,2]
[350079031,1737601848212,-546.27774706,0.00019452,2]
[350079032,1737601848221,-592.62,0.00019452,2]
[350079033,1737601848230,-558.15,0.00019452,2]
[350079034,1737601848240,-500.0,0.00019452,2]
[350079035,1737601848250,-500.0,0.00019452,2]
[350079036,1737601848259,-573.29,0.00019452,2]
[350079037,1737601848268,-622.35,0.00019452,2]
[350079038,1737601848279,-589.76,0.00019452,2]
[350079039,1737601848289,-500.4,0.00019452,2]
[350079040,1737601848298,-616.97,0.00019452,2]
[350079041,1737601848307,-500.0,0.00019452,2]
[350079042,1737601848317,-500.0,0.00019452,2]
[350079043,1737601848326,-534.62,0.00019452,2]
[350079044,1737601848335,-517.66151959,0.00019452,2]
[350079045,1737601848345,-500.0,0.00019452,2]
[350079046,1737601848354,-500.0,0.00019452,2]
[350079047,1737601848363,-500.0,0.00019452,2]
[350079048,1737601848373,-500.0,0.00019452,2]
[350079049,1737601848384,-500.0,0.00019452,2]
[350079050,1737601848393,-1708.36,0.00019452,2]
[350079051,1737601848404,-500.0,0.00019452,2]
[350079052,1737601848414,-648.81699772,0.00019452,2]
[350079053,1737601848424,-500.0,0.00019452,2]
[350079054,1737601848434,-770.62,0.00019452,2]
[350079055,1737601848443,-500.0,0.00019452,2]
[350079056,1737601848453,-806.46,0.00019452,2]
[350079057,1737601848463,-500.0,0.00019452,2]
[350079058,1737601848472,-184.6405745,0.00019452,2]
[350079059,1737601848482,-500.0,0.00019452,2]
[350079060,1737601848491,-500.0,0.00019452,2]
[350079061,1737601848500,-1051.56,0.00019452,2]
[350079062,1737601848510,-500.0,0.00019452,2]
[350079063,1737601848519,-500.0,0.00019452,2]
[350079064,1737601848529,-500.0,0.00019452,2]
[350079065,1737601848539,-538.48,0.00019452,2]
[350079066,1737601848548,-500.0,0.00019452,2]
[350079067,1737601848557,-729.76,0.00019452,2]
[350079068,1737601848567,-629.29,0.00019452,2]
[350079069,1737601848582,-500.0,0.00019452,2]
[350079070,1737601848592,-500.0,0.00019452,2]
[350079071,1737601848602,-1076.24,0.00019452,2]
[350079072,1737601848614,-836.11,0.00019452,2]
[350079073,1737601848623,-1478.72,0.00019452,2]
[350079074,1737601848634,-500.0,0.00019452,2]
[350079075,1737601848643,-500.0,0.00019452,2]
[350079076,1737601848653,-515.66106063,0.00019452,2]
[350079077,1737601848663,-500.0,0.00019452,2]
[350079078,1737601848672,-590.35,0.00019452,2]
[350079079,1737601848837,-1223.08,0.00019452,2]
[350079080,1737601848852,-500.0,0.00019452,2]
[350079081,1737601848862,-2287.67,0.00019452,2]
[350079082,1737601848871,-500.0,0.00019452,2]
[350079083,1737601848881,-968.27,0.00019452,2]
[350079084,1737601848890,-500.0,0.00019452,2]
[350079085,1737601848899,-500.0,0.00019452,2]
[350079086,1737601848909,-1330.84,0.00019452,2]
[350079087,1737601848919,-500.0,0.00019452,2]
[350079088,1737601848928,-1440.82,0.00019452,2]
[350079089,1737601848938,-500.0,0.00019452,2]
[350079090,1737601848947,-1365.42,0.00019452,2]
[350079091,1737601848957,-2497.89,0.00019452,2]
[350079092,1737601848966,-500.0,0.00019452,2]
[350079093,1737601848976,-881.86,0.00019452,2]
[350079094,1737601848985,-1452.48,0.00019452,2]
[350079095,1737601848995,-500.0,0.00019452,2]
[350079096,1737601849005,-500.0,0.00019452,2]
[350079097,1737601849014,-1659.58,0.00019452,2]
[350079098,1737601849024,-901.96,0.00019452,2]
[350079099,1737601849033,-500.0,0.00019452,2]
[350079100,1737601849043,-774.03,0.00019452,2]
[350079101,1737601849053,-620.7,0.00019452,2]
[350079102,1737601849063,-1136.0,0.00019452,2]
[350079103,1737601849073,-1336.5,0.00019452,2]
[350079104,1737601849083,-800.69,0.00019452,2]
[350079105,1737601849092,-762.67,0.00019452,2]
[350079106,1737601849102,-2708.15,0.00019452,2]
[350079107,1737601849111,-600.78,0.00019452,2]
[350079108,1737601849121,-500.0,0.00019452,2]
[350079109,1737601849131,-500.0,0.00019452,2]
[350079110,1737601849140,-500.0,0.00019452,2]
[350079111,1737601849150,-500.0,0.00019452,2]
[350079112,1737601849160,-500.0,0.00019452,2]
[350079113,1737601849171,-500.0,0.00019452,2]
[350079114,1737601849181,-645.45,0.00019452,2]
[350079115,1737601849191,-500.0,0.00019452,2]
[350079116,1737601849200,-500.0,0.00019452,2]
[350079117,1737601849210,-500.0,0.00019452,2]
[350079118,1737601849220,-975.87,0.00019452,2]
[350079119,1737601849229,-500.0,0.00019452,2]
[350079120,1737601849239,-500.0,0.00019452,2]
[350079121,1737601849249,-1785.01,0.00019452,2]
[350079122,1737601849259,-500.0,0.00019452,2]
[350079123,1737601849269,-500.0,0.00019452,2]
[350079124,1737601849279,-500.0,0.00019452,2]
[350079125,1737601849289,-2094.7,0.00019452,2]
[350079126,1737601849299,-973.45,0.00019452,2]
[350079127,1737601849309,-500.0,0.00019452,2]
[350079128,1737601849319,-1583.2,0.00019452,2]
[350079129,1737601849329,-1014.5,0.00019452,2]
[350079130,1737601849339,-500.0,0.00019452,2]
[350079131,1737601849349,-740.05,0.00019452,2]
[350079132,1737601849360,-500.0,0.00019452,2]
[350079133,1737601849370,-500.0,0.00019452,2]
[350079134,1737601849381,-500.0,0.00019452,2]
[350079135,1737601849390,-1008.54,0.00019452,2]
[350079136,1737601849400,-500.0,0.00019452,2]
[350079137,1737601849410,-500.0,0.00019452,2]
[350079138,1737601849420,-500.0,0.00019452,2]
[350079139,1737601849429,-500.0,0.00019452,2]
[350079140,1737601849439,-683.54,0.00019452,2]
[350079141,1737601849448,-1456.71,0.00019452,2]
[350079142,1737601849458,-500.0,0.00019452,2]
[350079143,1737601849467,-500.0,0.00019452,2]
[350079144,1737601849477,-500.0,0.00019452,2]
[350079145,1737601849486,-1653.44,0.00019452,2]
[350079146,1737601849495,-947.44,0.00019452,2]
[350079147,1737601849505,-659.61,0.00019452,2]
[350079148,1737601849514,-500.0,0.00019452,2]
[350079149,1737601849523,-500.0,0.00019452,2]
[350079150,1737601849532,-500.0,0.00019452,2]
[350079151,1737601849541,-859.87,0.00019452,2]
[350079152,1737601849550,-500.0,0.00019452,2]
[350079153,1737601849560,-500.0,0.00019452,2]
[350079154,1737601849569,-500.0,0.00019452,2]
[350079155,1737601849583,-500.0,0.00019452,2]
[350079156,1737601849593,-500.0,0.00019452,2]
[350079157,1737601849602,-713.74,0.00019452,2]
[350079158,1737601849611,-500.0,0.00019452,2]
[350079159,1737601849621,-880.08,0.00019452,2]
[350079160,1737601849631,-500.0,0.00019452,2]
[350079161,1737601849640,-502.15365608,0.00019452,2]
[350079162,1737601849652,-865.21,0.00019452,2]
[350079163,1737601849661,-500.0,0.00019452,2]
[350079164,1737601849671,-500.0,0.00019452,2]
[350079165,1737601849680,-500.0,0.00019452,2]
[350079166,1737601849689,-500.0,0.00019452,2]
[350079167,1737601849698,-2205.73,0.00019452,2]
[350079168,1737601849708,-525.51,0.00019452,2]
[350079169,1737601849717,-500.0,0.00019452,2]
[350079170,1737601849726,-500.0,0.00019452,2]
[350079171,1737601849736,-500.0,0.00019452,2]
[350079172,1737601849745,-500.0,0.00019452,2]
[350079173,1737601849754,-500.0,0.00019452,2]
[350079174,1737601849764,-500.0,0.00019452,2]
[350079175,1737601849773,-520.85,0.00019452,2]
[350079176,1737601849783,-500.0,0.00019452,2]
[350079177,1737601849794,-500.0,0.00019452,2]
[350079178,1737601849804,-500.0,0.00019452,2]
[350079179,1737601849814,-1015.49,0.00019452,2]
[350079180,1737601849824,-1435.42,0.00019452,2]
[350079181,1737601849833,-500.0,0.00019452,2]
[350079182,1737601849843,-500.0,0.00019452,2]
[350079183,1737601849852,-500.0,0.00019452,2]
[350079184,1737601849862,-500.0,0.00019452,2]
[350079185,1737601849871,-500.0,0.00019452,2]
[350079186,1737601849881,-500.0,0.00019452,2]
[350079187,1737601849889,-500.0,0.00019452,2]
[350079188,1737601849899,-525.61470709,0.00019452,2]
[350079189,1737601849908,-500.0,0.00019452,2]
[350079190,1737601849917,-671.32,0.00019452,2]
[350079191,1737601849926,-599.42,0.00019452,2]
[350079192,1737601849935,-843.22,0.00019452,2]
[350079193,1737601849944,-500.0,0.00019452,2]
[350079194,1737601849954,-233.89460858,0.00019452,2]
[350079195,1737601849963,-2063.25,0.00019452,2]
[350079196,1737601849972,-500.0,0.00019452,2]
[350079197,1737601849981,-358.61744785,0.00019521,2]
[350079198,1737601849991,-854.17,0.00019547,2]
[350079199,1737601850000,-358.61744785,0.00019624,2]
[350079200,1737601850009,-3185.60830584,0.00019653,2]
[350079201,1737601850018,-854.17,0.00019684,2]
[350079202,1737601850028,-500.0,0.00019726,2]
[350079203,1737601850038,-500.0,0.00019726,2]
[350079204,1737601850047,-518.92687767,0.00019726,2]
[350079205,1737601850058,-500.0,0.00019726,2]
[350079206,1737601850067,-500.0,0.00019726,2]
[350079207,1737601850076,-500.0,0.00019726,2]
[350079208,1737601850085,-500.0,0.00019726,2]
[350079209,1737601850095,-500.0,0.00019726,2]
[350079210,1737601850104,-500.0,0.00019726,2]
[350079211,1737601850113,-500.0,0.00019726,2]
[350079212,1737601850123,-533.19,0.00019726,2]
[350079213,1737601850132,-500.0,0.00019726,2]
[350079214,1737601850141,-500.0,0.00019726,2]
[350079215,1737601850151,-500.0,0.00019726,2]
[350079216,1737601850161,-500.0,0.00019726,2]
[350079217,1737601850170,-500.0,0.00019726,2]
[350079218,1737601850180,-570.23,0.00019726,2]
[350079219,1737601850189,-500.0,0.00019726,2]
[350079220,1737601850199,-500.0,0.00019726,2]
[350079221,1737601850209,-500.0,0.00019726,2]
[350079222,1737601850219,-500.0,0.00019726,2]
[350079223,1737601850228,-500.0,0.00019726,2]
[350079224,1737601850238,-500.0,0.00019726,2]
[350079225,1737601850247,-500.0,0.00019726,2]
[350079226,1737601850257,-500.0,0.00019726,2]
[350079227,1737601850266,-500.0,0.00019726,2]
[350079228,1737601850276,-571.38,0.00019726,2]
[350079229,1737601850285,-568.18,0.00019726,2]
[350079230,1737601850294,-500.0,0.00019726,2]
[350079231,1737601850304,-500.0,0.00019726,2]
[350079232,1737601850313,-780.76,0.00019726,2]
[350079233,1737601850322,-500.0,0.00019726,2]
[350079234,1737601850332,-500.0,0.00019726,2]
[350079235,1737601850341,-500.0,0.00019726,2]
[350079236,1737601850350,-500.0,0.00019726,2]
[350079237,1737601850360,-536.36,0.00019726,2]
[350079238,1737601850369,-500.0,0.00019726,2]
[350079239,1737601850380,-500.0,0.00019726,2]
[350079240,1737601850389,-500.0,0.00019726,2]
[350079241,1737601850398,-500.0,0.00019726,2]
[350079242,1737601850407,-228.41907641,0.00019726,2]
[350079243,1737601850417,-500.0,0.00019726,2]
[350079244,1737601850426,-500.0,0.00019726,2]
[350079245,1737601850437,-500.0,0.00019726,2]
[350079246,1737601850447,-519.52659,0.00019726,2]
[350079247,1737601850457,-500.0,0.00019726,2]
[350079248,1737601850466,-500.0,0.00019726,2]